[Event "Charlotte Summer IM D 2022"]
[Site "Charlotte"]
[Date "2022.07.25"]
[Round "2.4"]
[White "Wen, Teddie"]
[Black "Canty, James"]
[Result "1-0"]
[ECO "E92"]
[WhiteElo "2234"]
[BlackElo "2175"]
[Annotator "TA"]
[PlyCount "85"]
[EventDate "2022.07.24"]
[EventType "tourn"]
[EventCountry "USA"]
[SourceTitle "playchess.com"]
[Source "ChessBase"]
[SourceQuality "1"]
[TimeControl "5400+30"]

{[%evp 25,85,0,43,32,56,50,107,118,170,169,180,170,175,167,230,232,263,247,244,232,244,201,214,202,216,203,252,250,234,229,234,237,236,231,489,478,457,438,486,494,718,718,725,711,1566,790,782,750,4714,4491,2176,1228,29977,29978,29984,29985,29985,29985,29987,29988,29989,29990]} 1. d4 {[%emt 0:01:27]} Nf6 {[%emt 0:01:47]} 2. c4 {[%emt 0:00:06]} g6 {[%emt 0:00:03]} 3. Nc3 {[%emt 0:00:05]} Bg7 {[%emt 0:00:03]} 4. e4 {[%emt 0:00:06]} d6 {[%emt 0:00:06]} 5. Nf3 {[%emt 0:00:03]} O-O {[%emt 0:00:06]} 6. Be2 {[%emt 0:00:06]} e5 {[%emt 0:00:05]} 7. d5 {[%emt 0:00:03]} a5 {[%emt 0:00:04]} 8. Bg5 {[%emt 0:00:22]} h6 {[%emt 0:00:06]} 9. Bh4 {[%emt 0:00:05]} Na6 {[%emt 0:00:03]} 10. Nd2 {[%emt 0:00:28]} Bd7 {[%emt 0:00:26]} 11. O-O {[%emt 0:00:20]} Nc5 {[%emt 0:00:10]} 12. b3 {[%emt 0:04:24][%cal Bb2b3,Bb3b4][%mdl 32]} Qe8 {[%emt 0:11:30]} 13. a3 {[%emt 0:02:46]} Nh7 {[%emt 0:04:18]} 14. Qc2 {[%emt 0:01:30] E92: King's Indian: Classical: 6 Be2 e5: 7 dxe5, 7 Be3 and Petrosian System without 7...Nbd7.} f5 {[%emt 0:03:16] aiming for ...g5.} 15. f3 $1 {[%emt 0:00:04]} g5 {[%emt 0:02:05]} (15... fxe4 $14 16. Ncxe4 (16. Ndxe4 Nxe4 17. fxe4 Nf6 $14) 16... Nxe4 17. Nxe4 Nf6) 16. Bf2 $16 {[%emt 0:00:04] White is better.} f4 {[%emt 0:00:08] [#]} (16... fxe4 $16 17. Bxc5 (17. Ndxe4 Nxe4 18. Nxe4 Nf6 $14) (17. fxe4 Na6 $14) 17... dxc5) 17. b4 $1 $18 {[%emt 0:00:08]} Na6 {[%emt 0:00:08]} 18. Rab1 {[%emt 0:01:12]} ({Don't take} 18. bxa5 $6 Nf6 $16) 18... axb4 {[%emt 0:00:49]} 19. axb4 {[%emt 0:00:05][%cal Ba3b4,Bb4b5,Bb5b6,Bb6c7][%mdl 32]} h5 {[%emt 0:00:05]} (19... Qg6 $142 20. c5 g4) 20. c5 {[%emt 0:00:07]} g4 {[%emt 0:00:29] [#]} 21. c6 $1 {[%emt 0:00:36] [#]} bxc6 $146 {[%emt 0:00:33]} ({Predecessor:} 21... g3 22. hxg3 fxg3 23. Bxg3 Qg6 24. Bh2 Bh3 25. Rf2 Bh6 26. Nf1 b5 27. Kh1 Bc8 28. Bxb5 h4 29. Bxa6 Rxa6 30. b5 Ra8 31. Qe2 {½-½ (31) Odnorozhenko,E (2293)-Voinov,S (2339) Kolomna 2012}) 22. dxc6 {[%emt 0:00:05]} Be6 {[%emt 0:00:55]} (22... Bxc6 $2 23. b5 $18) 23. b5 {[%emt 0:00:47]} Nc5 {[%emt 0:00:36]} 24. Bxc5 {[%emt 0:00:35]} dxc5 {[%emt 0:00:03]} 25. Bc4 {[%emt 0:00:05]} Kh8 {[%emt 0:01:35]} 26. Bxe6 {[%emt 0:04:29]} Qxe6 {[%emt 0:00:04]} 27. Nd5 {[%emt 0:00:08]} Rf7 {[%emt 0:04:07]} 28. b6 {[%emt 0:16:20]} Qxc6 {[%emt 0:04:35]} 29. bxc7 {[%emt 0:02:30]} Nf6 $2 {[%emt 0:01:01]} (29... Rxc7 30. Rb6 (30. Nxc7 Qxc7 31. Rb5 Rc8 $18) 30... Qd7) 30. Rb8+ {[%emt 0:03:31]} Rf8 {[%emt 0:00:07]} 31. Rb6 {[%emt 0:02:02]} Qd7 {[%emt 0:04:28]} 32. Qxc5 {[%emt 0:02:40]} gxf3 {[%emt 0:00:10]} (32... Rfc8 $142 33. Nxf6 Qxc7 34. Qxc7 Rxc7 35. Nxh5 Bf8) 33. Nxf3 {[%emt 0:06:38] Pair of Knights!} Nxe4 {[%emt 0:01:16]} 34. Qc6 {[%emt 0:05:38]} Qg4 {[%emt 0:06:26]} 35. Qxa8 {[%emt 0:09:10] Active counter play!} Rxa8 {[%emt 0:00:02]} 36. Rb8+ {[%emt 0:00:01]} Kh7 {[%emt 0:00:42]} 37. Rxa8 {[%emt 0:00:25]} Nd6 {[%emt 0:00:04]} 38. h3 {[%emt 0:09:13]} Qg3 {[%emt 0:03:19]} 39. Rd8 {[%emt 0:03:40] White mates.} e4 {[%emt 0:00:07]} 40. Rxd6 {[%emt 0:00:57]} exf3 {[%emt 0:00:05]} 41. Rxf3 {[%emt 0:00:26]} Qe1+ {[%emt 0:00:13]} 42. Kh2 {[%emt 0:00:08]} Qc1 {[%emt 0:00:21] [#]} 43. Rc3 $3 {[%emt 0:02:40][%mdl 512] Black got outplayed after the opening.  Weighted Error Value: White=0.07 (flawless) /Black=0.62} 1-0

[Event "Charlotte Summer IM D 2022"]
[Site "Charlotte"]
[Date "2022.07.25"]
[Round "2.5"]
[White "Chasin, Nico"]
[Black "Martin Del Campo Cardenas, Roberto Abel"]
[Result "0-1"]
[ECO "A54"]
[WhiteElo "2285"]
[BlackElo "2245"]
[Annotator "TA"]
[PlyCount "90"]
[EventDate "2022.07.24"]
[EventType "tourn"]
[EventCountry "USA"]
[SourceTitle "playchess.com"]
[Source "ChessBase"]
[SourceQuality "1"]
[TimeControl "5400+30"]

{[%evp 12,90,84,31,81,27,26,29,41,0,78,22,89,93,83,91,91,80,91,95,78,90,120,133,170,176,187,114,155,100,120,135,125,37,58,47,52,38,41,46,179,56,57,58,19,-61,-72,-230,-245,-241,-220,-208,-61,-44,-22,-69,-50,-355,-335,-445,-259,-227,-154,-155,-249,-522,-503,-786,-747,-965,-993,-1462,-1411,-1298,-1281,-1231,-1188,-2025,-1977,-2198,-2153]} 1. d4 {[%emt 0:06:49]} Nf6 {[%emt 0:00:11]} 2. c4 {[%emt 1:24:41]} d6 {[%emt 0:00:04]} 3. Nc3 {[%emt 0:00:00]} e5 {[%emt 0:01:06]} 4. Nf3 {[%emt 0:00:00]} e4 {[%emt 0:03:17]} 5. Ng5 {[%emt 0:00:00]} Bf5 {[%emt 0:01:13]} 6. Qc2 {[%emt 0:00:00]} Qe7 {[%emt 0:00:39]} 7. g4 {[%emt 0:00:00] was the old line (7.f3).} (7. f3 $1 $16) 7... Bxg4 {[%emt 0:08:14] A54: Old Indian Defence with Nf3, but without e4.} (7... Bg6 $14) 8. Bg2 {[%emt 0:00:00]} (8. Ngxe4 $16 Nbd7 9. Bg2) 8... Nc6 $11 {[%emt 0:01:41] [#]} 9. Be3 $146 {[%emt 0:00:00][%cal Rg5e4]} ({Predecessor:} 9. d5 Nd4 10. Qa4+ Bd7 11. Qd1 Nf5 12. Ngxe4 Nxe4 13. Bxe4 g6 14. Bxf5 Bxf5 15. Qd4 {0-1 (48) Borges,G (2130)-Suarez Garcia,C (2454) Gijon 2021}) 9... Bf5 $1 {[%emt 0:03:36] White has an edge.} 10. Nd5 {[%emt 0:00:00]} Qd8 {[%emt 0:19:21]} (10... Nxd4 $1 $11 {remains equal.} 11. Bxd4 Nxd5 12. cxd5 Qxg5 13. Bxe4 Bxe4 14. Qxe4+ Be7) 11. Nxe4 {[%emt 0:00:00]} ({White should play} 11. Nxf6+ $16 Qxf6 12. Bxe4) 11... Nxe4 {[%emt 0:08:11]} (11... Nxd5 $11 {keeps the balance.} 12. cxd5 Ne7) 12. Bxe4 $16 {[%emt 0:00:00]} Bg6 {[%emt 0:00:29]} 13. h4 $36 {[%emt 0:00:00][%cal Bh2h4,Bh4h5][%mdl 2080] White has strong initiative.} Ne7 {[%emt 0:48:58]} 14. h5 {[%emt 0:00:00]} Bxe4 {[%emt 0:00:00]} 15. Qxe4 {[%emt 0:00:00]} c6 {[%emt 0:00:00]} 16. Nc3 {[%emt 0:00:00]} Qd7 {[%emt 0:00:00]} 17. d5 {[%emt 0:00:00]} c5 {[%emt 0:00:00]} 18. Bf4 $1 {[%emt 0:00:00] Strongly threatening Nb5.} a6 {[%emt 0:00:00]} 19. Qd3 {[%emt 0:00:00]} (19. Rb1 $1 $18) 19... h6 {[%emt 0:00:00]} 20. O-O-O {[%emt 0:00:00]} ({White should try} 20. Rb1 $1) 20... g5 {[%emt 0:00:00] [#]} 21. Ne4 $1 {[%emt 0:00:00]} Ng8 {[%emt 0:00:00] [#] Prevents Nf6+.} 22. Bh2 {[%emt 0:00:00]} (22. Bd2 $1 $16 {[%cal Rd2c3]}) 22... f5 $14 {[%emt 0:00:00]} 23. Ng3 {[%emt 0:00:00]} Ne7 {[%emt 0:00:00]} 24. f4 $1 {[%emt 0:00:00]} b5 {[%emt 0:00:00]} 25. e4 {[%emt 0:00:00][%cal Re4f5]} bxc4 {[%emt 0:00:00]} (25... Bg7 $1 $14) 26. Qxc4 {[%emt 0:00:00]} (26. Qc3 $18 Rg8 27. exf5 (27. Qxc4 gxf4 28. Nxf5 Nxf5 $16) 27... gxf4 28. Ne4) 26... Bg7 {[%emt 0:00:00]} 27. fxg5 {[%emt 0:00:00]} Rb8 {[%emt 0:00:00]} 28. Rd2 {[%emt 0:00:00]} (28. Qxa6 $2 f4 29. gxh6 Bxb2+ 30. Kd2 Be5 $19) (28. b3 $1 $11) 28... f4 $15 {[%emt 0:00:00]} 29. Ne2 $2 {[%emt 0:00:00]} (29. gxh6 $17 Bxh6 30. Nf5 Nxf5 31. exf5) 29... hxg5 $19 {[%emt 0:00:00]} 30. Rg1 {[%emt 0:00:00]} Bf6 {[%emt 0:00:00]} ({Weaker is} 30... Rxh5 31. Nxf4 (31. Bxf4 gxf4 32. Rxg7 Rh1+ 33. Rd1 Rxd1+ 34. Kxd1 Nf5 $17) 31... gxf4 32. Rxg7 $11) 31. e5 {[%emt 0:00:00]} dxe5 {[%emt 0:01:07]} (31... Rb4 $19 32. Qd3 (32. Qxa6 $2 Bxe5 33. Rxg5 Bf6 $19) 32... Bxe5 33. Rxg5 Qb5 34. Qxb5+ axb5) 32. Nc3 $1 $15 {[%emt 0:00:00]} Rb4 {[%emt 0:00:28]} (32... Rxh5 $2 33. d6 Ng6 {[#]} 34. Bxf4 $1 $16 {[%mdl 512]}) 33. Qxa6 {[%emt 0:00:00]} (33. Qxc5 $11 Rb8 34. d6 (34. Ne4 Kf7 $15)) 33... Kf7 {[%emt 0:08:25]} 34. Qe2 {[%emt 0:00:00][%mdl 8192] Against e4} (34. Re1 $1 $15) 34... Rd4 $19 {[%emt 0:00:00]} 35. Ne4 {[%emt 0:00:00]} Rxd2 {[%emt 0:00:00]} (35... Qxd5 $142 36. Nc3 Rxd2 37. Qxd2 Qxd2+ 38. Kxd2 Rxh5) 36. Qxd2 {[%emt 0:00:00]} Rxh5 {[%emt 0:01:30] Dancing on a razor blade.} 37. d6 {[%emt 0:17:30] Black must now prevent Qe2.} Nf5 {[%emt 0:00:00] aiming for ...Nd4.} 38. Qd5+ {[%emt 0:00:00]} (38. Qe2 Rh8 39. Nxg5+ Bxg5 40. Rxg5) 38... Qe6 {[%emt 0:01:00] Black is clearly winning.} 39. Qb7+ {[%emt 0:00:00]} (39. Rd1 $142 Rxh2 40. Nxf6) 39... Kg6 {[%emt 0:00:30]} 40. d7 {[%emt 0:00:00]} Rxh2 {[%emt 0:00:00]} 41. Nxg5 {[%emt 0:00:00]} Qc4+ {[%emt 0:00:00]} 42. Kb1 {[%emt 0:00:00]} Qd3+ {[%emt 0:00:00]} 43. Ka1 {[%emt 0:00:00]} Bxg5 {[%emt 0:00:00]} 44. a4 {[%emt 0:00:00]} Rd2 {[%emt 0:00:00] And now ...Rd1+ would win.} 45. Qc6+ {[%emt 0:00:00]} Kf7 {[%emt 0:00:00] Never resign too early!  Weighted Error Value: White=0.80/Black=0.33} 0-1

[Event "Charlotte Summer IM D 2022"]
[Site "Charlotte"]
[Date "2022.07.25"]
[Round "3.1"]
[White "Martin Del Campo Cardenas, Roberto Abel"]
[Black "Bacus, Dharim"]
[Result "1/2-1/2"]
[ECO "C84"]
[WhiteElo "2245"]
[BlackElo "2227"]
[Annotator "TA"]
[PlyCount "60"]
[EventDate "2022.07.24"]
[EventType "tourn"]
[EventCountry "USA"]
[SourceTitle "playchess.com"]
[Source "ChessBase"]
[SourceQuality "1"]
[TimeControl "5400+30"]

{[%evp 21,26,10,7,16,12,14,20]} 1. e4 {[%emt 0:00:17]} e5 {[%emt 0:00:12]} 2. Nf3 {[%emt 0:00:53]} Nc6 {[%emt 0:00:12]} 3. Bb5 {[%emt 1:30:50]} a6 4. Ba4 Nf6 5. O-O Be7 6. d4 exd4 7. e5 {[%emt 0:00:00]} Ne4 {[%emt 1:33:36]} 8. Nxd4 Nxd4 9. Qxd4 {[%emt 0:00:00]} Nc5 {[%emt 0:01:00]} 10. Nc3 O-O {[%emt 0:00:00]} 11. Nd5 {[%emt 0:04:00] Recently 11.Bb3 got a lot of attention.} d6 {The position is equal.} 12. Nxe7+ {C84: Closed Ruy Lopez: Unusual White 6th moves.} Qxe7 13. exd6 {[%emt 0:00:00]} Qxd6 {[%emt 0:00:00] [#] An interesting draw.} {Predecessor:} 14. Qxd6 $146 cxd6 15. Bb3 Nxb3 16. axb3 Bf5 17. c3 Rfe8 18. Be3 d5 19. b4 Bd3 20. Rfd1 Bc4 21. Re1 f6 22. Bd4 Kf7 23. f3 Rxe1+ 24. Rxe1 Re8 25. Rxe8 Kxe8 26. Kf2 Kf7 27. Bc5 Ke6 28. Bd4 Bb5 29. Ke3 Bf1 30. Kf2 Bc4 {½-½ (30) Paehtz,E (2475)-Lei,T (2505) Riga 2021} 1/2-1/2

[Event "Charlotte Summer IM D 2022"]
[Site "Charlotte"]
[Date "2022.07.26"]
[Round "3.2"]
[White "Canty, James"]
[Black "Chasin, Nico"]
[Result "0-1"]
[ECO "B48"]
[WhiteElo "2175"]
[BlackElo "2285"]
[Annotator "TA"]
[PlyCount "66"]
[EventDate "2022.07.24"]
[EventType "tourn"]
[EventCountry "USA"]
[SourceTitle "playchess.com"]
[Source "ChessBase"]
[SourceQuality "1"]
[TimeControl "5400+30"]

{[%evp 11,66,36,37,9,0,0,0,0,0,0,0,-4,0,0,0,7,12,-14,0,0,0,0,-18,-26,20,24,23,18,31,25,24,-124,-130,-116,-74,-81,0,0,0,0,0,0,0,-88,-83,-204,-156,-5361,-1464,-29980,-29981,-29977,-29976,-29975,-29977,-29968,-29965]} 1. e4 {[%emt 1:31:00]} c5 {[%emt 0:10:09]} 2. Nf3 {[%emt 0:00:00]} Nc6 {[%emt 1:21:21]} 3. d4 {[%emt 0:00:00]} cxd4 {[%emt 0:00:00]} 4. Nxd4 {[%emt 0:00:00]} e6 {[%emt 0:00:00]} 5. Nc3 {[%emt 0:00:00]} Qc7 {[%emt 0:00:00]} 6. Be3 {[%emt 0:00:00]} a6 {[%emt 0:00:00]} 7. g4 {[%emt 0:03:00] B48: Sicilian: Taimanov: 5 Nc3 Qc7 6 Be3 a6 without Be2.} b5 {[%emt 0:00:00]} 8. Nxc6 {[%emt 0:00:00]} Qxc6 {[%emt 0:00:00]} 9. Qd2 {[%emt 0:01:00] The position is equal.} b4 {[%emt 0:00:00]} 10. Ne2 {[%emt 0:00:00]} Qxe4 {[%emt 0:00:00]} 11. Rg1 {[%emt 0:00:00] [#] Threatens to win with Bg2.} Qc6 {[%emt 0:00:00]} 12. Bg2 {[%emt 0:00:00]} d5 {[%emt 0:00:00]} 13. O-O-O {[%emt 0:00:00]} Bb7 {[%emt 0:00:00] [#]} 14. g5 $146 {[%emt 0:00:00] Prevents Nf6.} ({Predecessor:} 14. Nf4 Nf6 15. Bd4 Rc8 16. g5 Ne4 17. Bxe4 dxe4 18. Nh5 Rg8 19. Bf6 Qd5 20. b3 Qxd2+ 21. Rxd2 e3 22. fxe3 Bf3 23. Rgd1 Bxd1 24. Rxd1 Bc5 25. Nxg7+ Kf8 {0-1 (25) Nielsen,V (2323)-Hacker,J (2396) Ballerup 2022}) 14... Ne7 {[%emt 0:06:00]} 15. Nd4 Qd7 {[%emt 0:00:00]} 16. f4 {[%emt 0:00:00]} g6 {[%emt 0:00:00]} 17. Qxb4 {[%emt 0:00:00]} Nf5 {[%emt 0:00:00]} (17... Bg7 {might be stronger.}) 18. Qe1 $11 {[%emt 0:00:00] Nxf5 is the strong threat.} Nxe3 {[%emt 0:02:00]} 19. Qxe3 {[%emt 0:00:00]} Bd6 {[%emt 0:00:00]} 20. Kb1 {[%emt 0:00:00] And now f5 would win.} O-O {[%emt 0:00:00]} 21. Nf3 {[%emt 0:00:00]} (21. Rgf1 $11 {remains equal.}) 21... Qc7 $17 {[%emt 0:00:00]} 22. Ne5 {[%emt 0:00:00]} Rac8 {[%emt 0:00:00]} 23. Qe2 {[%emt 0:00:00]} f6 {[%emt 0:00:00]} (23... Rb8 $17) 24. Ng4 {[%emt 0:00:00]} Bxf4 {[%emt 0:00:00]} 25. Nxf6+ {[%emt 0:00:00]} Kh8 {[%emt 0:00:00]} 26. h4 {[%emt 0:00:00]} Be5 {[%emt 0:00:00][%cal Bf4e5,Be5b2,Bb2c3][%mdl 32] aiming for ...Bxb2! A strong pair of Bishops.} 27. Nd7 {[%emt 0:00:00] [#]} Bxb2 $1 {[%emt 0:00:00]} 28. Nxf8 {[%emt 0:00:00]} (28. Kxb2 $17 {was the only defense.} Qxd7 29. Rgf1) 28... Bc3 $40 {[%emt 0:00:00][%mdl 128] ( -> ...Qb6+). Black wants a kill. Chess con chili.} 29. Qxe6 {[%emt 0:00:00] Now White is beyond hope.} (29. Qe3 $17 Rxf8 30. Rdf1) 29... Qc5 {[%emt 0:00:00]} (29... Rb8 $142 30. Rd3 Bc8+ 31. Kc1 Bxe6 32. Nxe6 Qb6 33. Rxc3 Qxg1+ 34. Kd2 Qxg2+ 35. Ke3 Re8 36. Kd3 Qe4+ 37. Kd2 Qxe6 38. Kc1 Qe1+ 39. Kb2 Qe5 40. Kb3 Rb8+ 41. Ka4 Qxc3 42. a3 Qc6+ 43. Ka5 Qb5#) 30. Bxd5 {[%emt 0:00:00]} Bxd5 {[%emt 0:00:00] Black mates.} 31. Qxd5 {[%emt 0:00:00]} Rb8+ {[%emt 0:00:00]} 32. Qb3 {[%emt 0:00:00]} Rxb3+ {[%emt 0:00:00]} 33. cxb3 {[%emt 0:00:00]} Qf2 {[%emt 0:00:00] Weighted Error Value: White=0.57/Black=0.43} 0-1

[Event "Charlotte Summer IM D 2022"]
[Site "Charlotte"]
[Date "2022.07.26"]
[Round "3.3"]
[White "Bisiriyu-Salam, Oluwaseun"]
[Black "Wen, Teddie"]
[Result "1/2-1/2"]
[ECO "E60"]
[WhiteElo "1992"]
[BlackElo "2234"]
[Annotator "TA"]
[PlyCount "100"]
[EventDate "2022.07.24"]
[EventType "tourn"]
[EventCountry "USA"]
[SourceTitle "playchess.com"]
[Source "ChessBase"]
[SourceQuality "1"]
[TimeControl "5400+30"]

{[%evp 19,100,0,0,0,16,4,27,23,25,0,-8,-9,-22,-15,-18,-25,23,37,49,37,52,47,57,47,48,38,52,47,33,8,39,0,5,-59,-58,-48,-50,-44,-24,-30,-12,-46,0,-13,-13,-45,-45,-58,-57,-163,0,0,0,0,0,-52,-52,-70,-45,-149,0,0,0,0,0,0,0,0,0,-12,-12,-17,-8,-8,0,0,0,0,0,0,0,0,13]} 1. d4 {[%emt 0:03:34]} Nf6 {[%emt 1:31:00]} 2. Nf3 {[%emt 0:00:11]} g6 {[%emt 0:00:00]} 3. g3 {[%emt 0:00:13]} Bg7 {[%emt 0:00:00]} 4. Bg2 {[%emt 0:00:08]} O-O {[%emt 0:00:00]} 5. c4 {[%emt 0:00:28]} d6 {[%emt 0:00:00]} 6. O-O {[%emt 0:00:36]} Nbd7 {[%emt 0:02:30]} 7. b3 {[%emt 0:00:47]} c6 {[%emt 0:00:00]} 8. Bb2 {[%emt 0:00:22]} Re8 {[%emt 0:00:00]} 9. Nbd2 {[%emt 0:03:57]} e5 {[%emt 0:00:00]} 10. dxe5 {[%emt 0:00:24]} dxe5 {[%emt 0:00:00]} 11. e4 {[%emt 0:02:33] E60: King's Indian: Unusual lines and Fianchetto Variation without Nc3.} a5 {[%emt 0:00:00]} 12. Qc2 {[%emt 0:00:28]} Qc7 {[%emt 0:00:00]} 13. c5 {[%emt 0:02:09] White has an edge.} Bf8 {[%emt 0:00:00] [#]} 14. Ba3 $146 {[%emt 0:01:24]} ({Predecessor:} 14. Nc4 Bxc5 15. Ncxe5 Nxe5 16. Qxc5 Nd3 17. Qc3 Nxb2 18. Qxf6 Nd3 19. Rfd1 Nc5 20. Ng5 {0-1 (33) Tissino,T (1776)-Cacco,C (2325) Padova 2012}) 14... Qb8 {[%emt 0:00:00]} 15. Ne1 {[%emt 0:05:58]} b6 {[%emt 0:00:00]} 16. Nd3 {[%emt 0:00:19]} Ba6 {[%emt 0:00:00]} 17. Nc4 {[%emt 0:01:30]} Bxc4 {[%emt 0:00:00]} (17... b5 $142 18. Nd6 (18. Nxa5 $2 b4 $17) 18... Bxd6 19. cxd6 b4) 18. Qxc4 $11 {[%emt 0:01:23]} b5 {[%emt 0:00:00]} 19. Qc2 {[%emt 0:00:26]} Nh5 {[%emt 0:00:00]} 20. Bh3 {[%emt 0:02:16]} Qc7 {[%emt 0:00:00]} 21. Bc1 {[%emt 0:01:06]} Ng7 {[%emt 0:00:00]} 22. Be3 {[%emt 0:01:56]} Ne6 {[%emt 0:00:00]} 23. Bxe6 {[%emt 0:00:05]} (23. a4 {looks sharper.} Nd4 24. Bxd4 exd4 25. axb5 cxb5 26. Rfc1) 23... Rxe6 {[%emt 0:00:00]} 24. a3 {[%emt 0:00:30]} Bg7 {[%emt 0:00:00]} 25. Rac1 {[%emt 0:04:42]} Nf8 {[%emt 0:00:00]} 26. f4 {[%emt 0:05:59]} (26. a4 $11) 26... exf4 $1 $15 {[%emt 0:00:00]} 27. Bxf4 {[%emt 0:00:37]} Qd7 {[%emt 0:00:00]} 28. Nf2 {[%emt 0:05:44]} Rae8 {[%emt 0:00:00]} 29. Rcd1 {[%emt 0:00:42]} Qe7 {[%emt 0:00:00]} 30. Bd6 {[%emt 0:01:34]} Qg5 {[%emt 0:00:00]} (30... Qb7 $15) 31. Rd3 {[%emt 0:05:49]} Nd7 {[%emt 0:00:00]} 32. Rf3 {[%emt 0:10:33][%cal Of3f7]} (32. Qd1 $5 {[%cal Rd6f4]} Ne5 33. Nh3 $11) 32... Ne5 {[%emt 0:00:00]} 33. Bxe5 {[%emt 0:06:44]} Bxe5 {[%emt 0:00:00]} 34. Rxf7 {[%emt 0:01:32] [#]} Bd4 $2 {[%emt 0:00:00]} (34... Kxf7 $6 35. Nh3+ Qf6 36. Qd2 $11) ({Black should play} 34... Bxg3 $1 $19 35. Nh3 Qe3+ 36. Kh1 Bh4) 35. Kg2 $11 {[%emt 0:02:01][%cal Ob3b4]} Qxc5 {[%emt 0:00:00]} (35... Kxf7 $2 36. Nh3+ Qf6 37. Ng5+ Kg7 38. Rxf6 Rxf6 39. Nf3 $16) 36. Qd2 {[%emt 0:03:20]} Qc3 {[%emt 0:00:00]} (36... Qxa3 $2 {[#]} 37. Qxd4 $1 Kxf7 38. Ng4+ Ke7 39. Nh6 $18) 37. Qf4 {[%emt 0:05:33]} ({Much weaker is} 37. Qh6 Bg7 38. Qf4 Be5 $15) (37. Qxc3 $11 Bxc3 38. Rc7) 37... Be5 $1 $15 {[%emt 0:00:00]} 38. Qh4 {[%emt 0:01:08][%csl Gf7][%cal Rh4h7]} h5 {[%emt 0:00:00] Strongly threatening ...Bf6.} (38... Bg7 $5 {[%cal Rc3b3]} 39. Ng4 (39. Nd1 $2 Qxb3 40. Qg4 Qxa3 $19) 39... Qc2+ 40. R1f2 Qxe4+ 41. Kh3 h5 42. Nf6+ Bxf6 43. Qxe4 Rxe4 44. R2xf6 R8e6 $15) 39. Nh3 {[%emt 0:08:22]} (39. Rf3 $15 Qc5 40. g4) 39... Bg7 {[%emt 0:01:25]} (39... Qxb3 $17 40. R1f3 Qb2+ 41. Nf2 Bg7) 40. Ng5 $1 $11 {[%emt 0:00:23] The position is equal.} R6e7 {[%emt 0:04:32]} 41. Qf4 {[%emt 0:02:29] Really sharp!} Qe5 {[%emt 0:02:03]} 42. Qxe5 {[%emt 0:04:11]} Rxe5 {[%emt 0:00:07]} 43. h4 {[%emt 0:00:11]} Bh6 {[%emt 0:01:31]} 44. Nh7 {[%emt 0:01:23]} Rxe4 {[%emt 0:05:08] White should prevent ...R4e7.} 45. Rc7 {[%emt 0:00:45] Threatening mate with Nf6+.} Re2+ {[%emt 0:00:04]} 46. Kh3 {[%emt 0:00:32] White wants to mate with Nf6+.} Bg7 {[%emt 0:02:34]} (46... R8e7 $5 47. Nf6+ Kg7 48. Rxc6 R2e6 49. Rxe6 Rxe6 $11) 47. Rff7 {[%emt 0:00:23]} Be5 {[%emt 0:00:34]} ({Don't take} 47... Kxh7 48. Rxg7+ Kh8 49. Rxg6 $16) 48. Nf6+ {[%emt 0:00:43]} Bxf6 {[%emt 0:00:03]} 49. Rxf6 {[%emt 0:00:19]} R8e6 {[%emt 0:00:36]} 50. Rff7 {[%emt 0:00:09]} Re1 {[%emt 0:01:52] Weighted Error Value: White=0.14 (very precise) /Black=0.18 (very precise)} 1/2-1/2